Cogmind - Beta 17.1 @@@ ROGUE MODE // 2026.09.21 @ 23:55:59 Player: Somberlain Result: Core melted Performance ------------- Evolutions (2) 1000 Regions Visited (4) 800 Robots Destroyed (41) 205 Value Destroyed (1331) 1331 Prototype IDs (1) 20 Alien Tech Used (0) 0 Bonus (0) 0 TOTAL SCORE: 3356 Bonus ------- None Cogmind --------- Core Integrity 0/550 Matter 187/300 Energy 91/140 System Corruption 12% Temperature Critical (724) Movement Treading (305) Ox2 Location -8/Materials Parts ------- > --- POWER (1) -------- Light Deuterium Engine > --- PROPULSION (3) --- Light Treads Advanced Treads > --- UTILITY (5) ------ Large Storage Unit Armor Integrity Analyzer Hardened Medium Armor Plating > --- WEAPON (2) ------- Plasma Cannon Plasma Cannon > --- INVENTORY (15) --- Heavy Armor Plating Improved Shield Generator Improved Shield Generator Hacking Suite Plasma Cannon Plasma Cannon Heavy Missile Launcher Heavy Missile Launcher Heavy Mace Peak State ------------ > --- POWER ------------ Light Deuterium Engine > --- PROPULSION ------- Improved Hover Unit Improved Hover Unit Airjet > --- UTILITY ---------- Improved Heat Sink Medium Storage Unit Armor Integrity Analyzer Hacking Suite Hacking Suite > --- WEAPON ----------- High-powered Field Laser High-powered Field Laser > --- INVENTORY -------- Improved Sensor Array Improved Terrain Scanner Improved Shield Generator Improved Shield Generator High-powered Field Laser High-powered Field Laser Heavy Missile Launcher Heavy Missile Launcher [Rating: 37] Favorites ----------- Power Light Deuterium Engine Engine Light Deuterium Engine Propulsion Improved Hover Unit Treads Light Treads Leg Aluminum Leg Hover Unit Improved Hover Unit Utility Medium Storage Unit Device Improved Sensor Array Storage Medium Storage Unit Processor Armor Integrity Analyzer Hackware Hacking Suite Protection Hardened Medium Armor Plating Weapon Medium Laser Energy Gun Medium Laser Energy Cannon Plasma Cannon Ballistic Gun Assault Rifle Launcher Heavy Missile Launcher Special Weapon Mining Laser Impact Weapon Heavy Mace Build | -11 -10 -9 -9 -8 ------- Run | Yrd Mat Mat Min Mat Slots Evolved 4 | . . 2 . 2 Power . | . . . . . Propulsion 1 | . . 1 . . Utility 3 | . . 1 . 2 Weapon . | . . . . . Parts Attached 51 | 6 8 8 1 28 Power 4 | 1 1 . . 2 Engine 4 | 1 1 . . 2 Core . | . . . . . Reactor . | . . . . . Propulsion 12 | 2 4 3 . 3 Treads 4 | 2 . . . 2 Leg 2 | . 2 . . . Wheel . | . . . . . Hover 6 | . 2 3 . 1 Flight . | . . . . . Utility 14 | 1 1 2 1 9 Device 3 | . . . . 3 Storage 4 | 1 1 . . 2 Processor 3 | . . . 1 2 Hackware 2 | . . 1 . 1 Protection 2 | . . 1 . 1 Artifact . | . . . . . Weapon 21 | 2 2 3 . 14 Energy Gun 10 | 1 2 1 . 6 Energy Cannon 2 | . . . . 2 Ballistic Gun 3 | 1 . . . 2 Ballistic Cannon . | . . . . . Launcher 3 | . . . . 3 Special Weapon 2 | . . 2 . . Impact Weapon 1 | . . . . 1 Slashing Weapon . | . . . . . Piercing Weapon . | . . . . . Special Melee Weapon . | . . . . . Unidentified Prototypes 1 | . . . . 1 Parts Lost 26 | . 3 7 1 15 Power 3 | . 1 1 . 1 Propulsion 7 | . 1 3 . 3 Utility 6 | . . . . 6 Weapon 10 | . 1 3 1 5 Highest Loss Streak 11 | . 3 3 1 11 To Critical Strikes . | . . . . . Average Backups 5 | 1 3 5 2 6 Power . | . . . . . Propulsion . | 1 1 . . . Utility 1 | . . . . 3 Weapon 2 | . 2 3 2 3 Tool/Special . | . . . . . Unused Backups 10 | . . . . 10 Power . | . . . . . Propulsion . | . . . . . Utility 4 | . . . . 4 Weapon 6 | . . . . 6 Tool/Special . | . . . . . Average Slot Usage (%) 69 | . 82 43 75 71 Engine 7 | . 12 3 . 7 Treads 7 | . 15 . . 7 Leg 1 | . 7 . . . Hover 9 | . 4 19 22 7 Device 7 | . . . . 12 Storage 8 | . 14 7 . 7 Processor 3 | . . . 9 5 Hackware 4 | . . . 11 7 Protection 2 | . . . 11 2 Energy Gun 12 | . 25 10 11 7 Energy Cannon 2 | . . . . 4 Special Weapon 1 | . . 2 11 . Peak Build Rating 37 | 6 9 11 12 37 Average Rating 16 | 5 6 6 11 25 On Entrance 7 | . 6 9 11 11 Avg Prop Armor Cover (%) 22 | . 7 11 . 31 Naked Turns . | . . . . . Heaviest Build 49 | 14 19 17 10 49 Greatest Support 42 | 40 40 21 16 42 Greatest Overweight (x) 7 | . 2 4 . 7 Average Overweight (x) . | . . . . . Largest Inventory Capacity 15 | 8 10 10 5 15 Average Capacity 9 | 7 9 8 5 10 Most Carried 10 | 2 7 6 3 10 Average Carried 5 | 1 3 5 2 7 Final Capacity 15 | 8 10 5 5 15 Final Carried 10 | 2 7 2 3 10 Class Distribution -------------------- 78% | Mutant 21% | Hacker-Mutant Dominant Class ---------------- Mutant | -10/Materials Mutant | -9/Materials Mutant | -9/Mines Mutant | -8/Materials Resources | -11 -10 -9 -9 -8 ----------- Run | Yrd Mat Mat Min Mat Matter Collected 770 | 272 109 . 56 333 Remotely . | . . . . . Salvage Created 1481 | 53 274 . . 1154 Parts 82 | 4 26 . . 52 Haulers Intercepted 3 | . 2 . . 1 Recyclers Shooed . | . . . . . Parts Field Recycled . | . . . . . Retrieved Matter . | . . . . . Parts Self-Destructed . | . . . . . Prevented . | . . . . . Parts Restored . | . . . . . Kills | -11 -10 -9 -9 -8 ------- Run | Yrd Mat Mat Min Mat Combat Hostiles Destroyed 30 | . 8 . . 22 Guns 20 | . 7 . . 13 Cannons 3 | . . . . 3 AOE 5 | . . . . 5 Classes Destroyed 11 | 1 4 . . 6 Worker 1 | . . . . 1 Tunneler 3 | 3 . . . . Hauler 3 | . 2 . . 1 Operator 2 | . 1 . . 1 Watcher 2 | . . . . 2 Swarmer 6 | . 6 . . . Grunt 14 | . 2 . . 12 Brawler 1 | . . . . 1 Duelist 1 | . . . . 1 Sentry 7 | . . . . 7 Hunter 1 | . . . . 1 Best Kill Streak 6 | 1 6 . . 5 Combat Bots Only 6 | . 6 . . 4 Max Kills in Single Turn 2 | 1 1 . . 2 Gunslinging . | . . . . . Exploded 1 | . . . . 1 Melee . | . . . . . Uniques/NPCs Destroyed . | . . . . . Combat | -11 -10 -9 -9 -8 -------- Run | Yrd Mat Mat Min Mat Hostile Shots Fired 305 | . 103 65 17 120 Missed 82 | . 28 23 8 23 Hits 223 | . 75 42 9 97 Melee 12 | . . 11 . 1 Projectile 211 | . 75 31 9 96 Critical Strikes 2 | . 1 . . 1 Damage Taken 3302 | . 635 732 109 1826 Core 1121 | . 113 373 26 609 Absorbed by Shields . | . . . . . Core Remaining (%) 51 | 100 54 . . . Volleys Fired 147 | 15 35 27 2 68 Largest 2 | 2 2 2 2 2 Hottest 160 | 70 100 100 150 160 Shots Fired 260 | 30 62 39 4 125 Gun 206 | 30 62 32 2 80 Cannon 35 | . . . . 35 Launcher 9 | . . . . 9 Special 10 | . . 7 2 1 Kinetic 21 | 15 2 . . 4 Thermal 230 | 15 60 39 4 112 Explosive 9 | . . . . 9 Electromagnetic . | . . . . . Robot Hit Streak 14 | 10 7 3 . 14 Robot Miss Streak 8 | 2 8 3 . 4 Penetration Max . | . . . . . Secondary Targets 3 | . 1 . . 2 Max Gunslinging Chain 1 | . 1 . . 1 Shots Hit Robots 148 | 23 32 17 . 76 Core Hits 62 | 3 14 4 . 41 Critical Kills . | . . . . . Critical Parts Destroyed 1 | . . . . 1 Critical Strikes 10 | 1 4 . . 5 Burn 9 | 1 4 . . 4 Smash 1 | . . . . 1 Melee Attacks 4 | . . . . 4 Impact 4 | . . . . 4 Slashing . | . . . . . Piercing . | . . . . . Sneak Attacks . | . . . . . Combat Hostiles . | . . . . . Follow-up Attacks . | . . . . . Damage Inflicted 3530 | 290 444 251 17 2528 Guns 2129 | 290 444 223 . 1172 Cannons 470 | . . . . 470 Explosions 728 | . . . . 728 Melee 158 | . . . . 158 Ramming 45 | . . 28 17 . Kinetic 218 | 164 15 . . 39 Thermal 2381 | 126 429 223 . 1603 Explosive 728 | . . . . 728 Electromagnetic . | . . . . . Impact 158 | . . . . 158 Slashing . | . . . . . Piercing . | . . . . . Highest Corruption 12 | . . . . 12 Average Corruption 8 | . . . . 8 Corruption Purged . | . . . . . Corruption Blocked . | . . . . . Effects 36 | . . . . 36 Message Errors 8 | . . . . 8 Matter Fused 8 | . . . . 8 Heat Flow Errors 4 | . . . . 4 Energy Discharges 4 | . . . . 4 Parts Rejected 1 | . . . . 1 Data Loss (minor) 5 | . . . . 5 Data Loss (major) 4 | . . . . 4 Misfires 2 | . . . . 2 Overload Shots . | . . . . . Overflow Damage 47 | . . . . 47 Projectiles . | . . . . . Explosions 3 | . . . . 3 Melee 44 | . . . . 44 Knockbacks . | . . . . . Impact . | . . . . . Kinetic . | . . . . . Secondary . | . . . . . Self-Inflicted Damage 147 | . . 12 8 127 Shots 6 | . . . . 6 Rammed 12 | . . 11 1 . Targets Rammed 12 | . . 11 1 . Kicked . | . . . . . Crushed . | . . . . . Highest Temperature 724 | 54 312 157 47 724 Average Temperature 129 | 20 140 55 21 167 Received Heat Transfer 1029 | . 60 183 57 729 Effects 13 | . . . . 13 Shutdowns 2 | . . . . 2 Energy Bleed 1 | . . . . 1 Interference 1 | . . . . 1 Short Circuit 2 | . . . . 2 Damage (minor) 2 | . . . . 2 Damage (major) 3 | . . . . 3 Damage (core) 2 | . . . . 2 Siege Activations . | . . . . . Martial Activations . | . . . . . Shielding Activations . | . . . . . Robots Disrupted . | . . . . . Combat Hostiles . | . . . . . Robots Corrupted 1 | . . . . 1 Combat Hostiles 1 | . . . . 1 Parts Fried 1 | . . . . 1 Impact Corruptions 2 | . . . . 2 Robots Melted 2 | . 2 . . . Combat Hostiles 1 | . 1 . . . Parts Melted 12 | 1 5 . . 6 Heat Transferred 5673 | 444 1554 666 . 3009 Parts Sabotaged . | . . . . . Parts Stolen . | . . . . . Parts Stripped . | . . . . . Power Chain Reactions 1 | . . . . 1 Alert | -11 -10 -9 -9 -8 ------- Run | Yrd Mat Mat Min Mat Maximum Alert Level 1 | . . . . 1 Low Security (%) 88 | 100 100 100 100 77 Level 1 11 | . . . . 22 Level 2 . | . . . . . Level 3 . | . . . . . Level 4 . | . . . . . Level 5 . | . . . . . High Security . | . . . . . Max Security . | . . . . . Peak Influence 253 | 5 123 113 95 253 Initial 40 | . . 20 40 12 Average 73 | . 44 22 60 112 Influence Increases 1295 | 15 225 163 82 810 Destroy 0b10 Robot/C 600 | . 160 . . 440 Destroy 0b10 Robot/NC 55 | 15 15 . . 25 Destroy Leader 170 | . 34 . . 136 Successful Hack 22 | . . 6 5 11 Disable Machine 90 | . . . . 90 Destroy Structure 103 | . 1 7 2 93 Lose Combat Pursuer 255 | . 15 150 75 15 Influence Decreases 1056 | 15 177 106 155 603 Entered New Map 113 | . . 28 65 20 Time Decay 752 | 15 147 77 80 433 Lost Part 191 | . 30 1 10 150 Squads Dispatched 6 | . 1 2 1 2 Investigation 1 | . . . 1 . Extermination . | . . . . . Reinforcement 5 | . 1 2 . 2 Assault . | . . . . . Garrison . | . . . . . Intercept . | . . . . . Searches Triggered . | . . . . . Construction Impeded . | . . . . . Haulers Reinforced . | . . . . . Active Scanning Responses . | . . . . . Cargo Convoy Interrupts . | . . . . . Stealth | -11 -10 -9 -9 -8 --------- Run | Yrd Mat Mat Min Mat Distress Signals 4 | . 1 1 . 2 Communications Jammed . | . . . . . Distress Signals . | . . . . . Times Spotted 79 | . 15 17 10 37 Peak Tracking Total 9 | . 6 9 5 6 Tactical Retreats 9 | . 1 4 3 1 Traps | -11 -10 -9 -9 -8 ------- Run | Yrd Mat Mat Min Mat Traps Triggered 2 | . . . . 2 Indirectly . | . . . . . Trap Hack Attempts . | . . . . . Triggered . | . . . . . Disarmed . | . . . . . Reprogrammed . | . . . . . Reused . | . . . . . Traps Extracted . | . . . . . Installed . | . . . . . Triggered . | . . . . . Machines | -11 -10 -9 -9 -8 ---------- Run | Yrd Mat Mat Min Mat Machines Disabled 6 | . . . . 6 Max in Single Turn 2 | . . . . 2 Machines Repaired . | . . . . . Machines Dismantled . | . . . . . Machines Sabotaged . | . . . . . Overloaded Fab Kills . | . . . . . Hacking | -11 -10 -9 -9 -8 --------- Run | Yrd Mat Mat Min Mat Machines Accessed 12 | . 3 2 1 6 Terminals 10 | . 3 1 1 5 Fabricators . | . . . . . Repair Stations . | . . . . . Recycling Units 1 | . . . . 1 Scanalyzers 1 | . . 1 . . Garrison Access . | . . . . . Total Hacks 40 | . 6 7 3 24 Successful 15 | . 1 3 1 10 Failed 25 | . 5 4 2 14 Catastrophic 3 | . 1 . . 2 Database Lockouts . | . . . . . Manual 34 | . 4 5 3 22 Terminals 36 | . 6 5 3 22 Fabricators . | . . . . . Repair Stations . | . . . . . Recycling Units 2 | . . . . 2 Scanalyzers 2 | . . 2 . . Garrison Access . | . . . . . Terminal Hacks 4 | . . . 1 3 Robot Analysis 3 | . . . 1 2 Registered Components 1 | . . . . 1 Fabricator Hacks . | . . . . . Repair Station Hacks . | . . . . . Recycling Unit Hacks 2 | . . . . 2 Retrieve Components 2 | . . . . 2 Scanalyzer 2 | . . 2 . . Retrieve Study 2 | . . 2 . . Garrison Access Hacks . | . . . . . Unauthorized Hacks 7 | . 1 1 . 5 Terminals 7 | . 1 1 . 5 Assimilate 2 | . . 1 . 1 Botnet 5 | . 1 . . 4 Fabricators . | . . . . . Repair Stations . | . . . . . Recycling Units . | . . . . . Scanalyzers . | . . . . . Garrison Access . | . . . . . Data Cores Recovered . | . . . . . Used . | . . . . . Hacking Detections 10 | . 3 1 1 5 Full Trace Events 2 | . . 1 1 . Feedback Events . | . . . . . Feedback Blocked . | . . . . . Robot Schematics Acquired . | . . . . . Robots Built . | . . . . . Authchips . | . . . . . Time . | . . . . . Total Robot Build Rating . | . . . . . Part Schematics Acquired . | . . . . . Parts Built . | . . . . . Authchips . | . . . . . Time . | . . . . . Total Part Build Rating . | . . . . . Part Studies Acquired 2 | . . 2 . . Parts Repaired . | . . . . . Time . | . . . . . Parts Recycled . | . . . . . Recycled Matter . | . . . . . Retrieved Matter . | . . . . . Retrieved Components . | . . . . . Parts Scanalyzed . | . . . . . Part Schematics Acquired . | . . . . . Parts Damaged . | . . . . . Bothacking | -11 -10 -9 -9 -8 ------------ Run | Yrd Mat Mat Min Mat Used RIF Installer . | . . . . . Robots Hacked . | . . . . . Non-combat . | . . . . . Combat . | . . . . . Robot Hacks Applied . | . . . . . Relay Couplers Released . | . . . . . Fabnet Peak Effective % . | . . . . . Robots Rewired . | . . . . . Allies Hacked . | . . . . . Hacks Repelled . | . . . . . Allies | -11 -10 -9 -9 -8 -------- Run | Yrd Mat Mat Min Mat Total Allies . | . . . . . Largest Group . | . . . . . Highest-Rated Group . | . . . . . Highest-Rated Ally . | . . . . . Total Orders . | . . . . . Ally Attacks . | . . . . . Total Damage . | . . . . . Kills . | . . . . . Allies Corrupted . | . . . . . Allies Melted . | . . . . . Intel | -11 -10 -9 -9 -8 ------- Run | Yrd Mat Mat Min Mat Active Infowar (turns) 580 | . . . . 580 Sensors 577 | . . . . 577 Terrain 284 | . . . . 284 Robot Analysis Total 2 | . . . 1 1 Derelict Logs Recovered 1 | . . . 1 . Drone Launches . | . . . . . Drone Recoveries . | . . . . . Exploration | -11 -10 -9 -9 -8 ------------- Run | Yrd Mat Mat Min Mat Turns Passed 2740 | 194 583 409 171 1383 Spaces Moved 1875 | 84 309 357 281 844 Core 165 | 3 . 4 . 158 Treads 452 | 81 133 . . 238 Legs 109 | . 109 . . . Wheels . | . . . . . Hover 1149 | . 67 353 281 448 Flight . | . . . . . Fastest Speed 50 | 50 116 52 56 50 Average Speed 106 | 156 137 73 56 120 Slowest Speed 400 | 160 190 250 56 400 Overloaded Moves . | . . . . . Propulsion Burnouts . | . . . . . Robots Hopped . | . . . . . Potential Cave-ins . | . . . . . Cave-ins Triggered . | . . . . . Exploration Rate (%) 40 | 5 43 35 63 58 Regions Visited 4 Branch Regions 1 Pre-discovered Areas 1 | . . . 1 . Known Exits Taken 1 | . . . 1 . Unknown Exits Taken 3 | 1 1 1 . . Scrap Searched 1 | . . . 1 . Spaces Dug 13 | . . 7 1 5 Terrain Destroyed 108 | . . 7 2 99 Melee . | . . . . . Projectile 30 | . . 7 2 21 AOE 78 | . . . . 78 Terrain Rammed . | . . . . . Walls Destroyed . | . . . . . Machines Disabled . | . . . . . Actions | -11 -10 -9 -9 -8 --------- Run | Yrd Mat Mat Min Mat Total 2326 | 114 405 446 286 1075 Wait 178 | 8 36 40 1 93 Move 1872 | 83 308 356 281 844 Hop . | . . . . . Pick Up 32 | 2 9 1 1 19 Fast Attach 32 | 6 6 2 1 17 Attach 21 | . 4 6 . 11 Detach 4 | . . . . 4 Swap 5 | . . 2 . 3 Drop 20 | . 7 1 . 12 Fire 147 | 15 35 27 2 68 Melee 4 | . . . . 4 Ram 11 | . . 11 . . Kick . | . . . . . Crush . | . . . . . Escape Stasis . | . . . . . Rewire . | . . . . . Trap . | . . . . . Miscellaneous . | . . . . . Route ------- -11/Scrapyard -10/Materials (discovered 3 exits: *Mat / [*Min] / [*Sub]) -9/Materials -9/Mines -8/Materials (discovered 3 exits: [*Fac x3]) History --------- Turn | Location | Event 31 | -11/Scrapyard | Discovered new exit (range 15) 195 | -11/Scrapyard | Entered Materials 259 | -10/Materials | Discovered new exit (range 15) 304 | -10/Materials | Build established: Mutant 422 | -10/Materials | Discovered new exit (range 7) 529 | -10/Materials | Lost 3 parts (1p1n1w) 582 | -10/Materials | Discovered new exit (range 12) 778 | -10/Materials | Entered another Materials area 778 | -9/Materials | Evolved 2 slots: Propulsion x1, Utility x1 969 | -9/Materials | Lost 3 parts (2n1w) 1002 | -9/Materials | Core integrity fell below 50% 1034 | -9/Materials | Lost 3 parts (1n2w) 1069 | -9/Materials | Core integrity fell below 20% 1180 | -9/Materials | Discovered new exit (range 14) 1187 | -9/Materials | Entered Mines 1203 | -9/Mines | Met a Derelict bent on vengeance 1238 | -9/Mines | Learned Materials security intel 1284 | -9/Mines | Learned location of Storage (-7) 1350 | -9/Mines | Discovered new exit (range 5) 1351 | -9/Mines | Identified exit to Materials 1358 | -9/Mines | Entered Materials 1358 | -8/Materials | Evolved 2 slots: Utility x2 1535 | -8/Materials | Discovered new exit (range 16) 1682 | -8/Materials | Build established: Hacker-Mutant 1814 | -8/Materials | Discovered new exit (range 7) 1961 | -8/Materials | System corruption reached 10% 2039 | -8/Materials | Lost 11 parts (1p2n4u4w) 2048 | -8/Materials | Discovered new exit (range 11) 2104 | -8/Materials | Core integrity fell below 50% 2270 | -8/Materials | Build established: Mutant 2736 | -8/Materials | Core integrity fell below 20% 2742 | -8/Materials | Core melted Last Messages --------------- 02707_ K-01 Serf collects debris. 02712_ System corrupted: Matter fused (-9). 02712_ U-05 Engineer builds a Wall. 02712_ U-05 Engineer works on Processing Tank. 02717_ U-05 Engineer completes Processing Tank. 02727_ System corrupted: Component data lost. 02727_ Imp. Terrain Scanner destroyed. 02728_ Unknown Power Core melted. 02728_ Particle Gun melted. 02728_ G-47 Trooper destroyed. 02734_ Electrolysis Chamber disabled. 02735_ U-05 Engineer builds a Wall. 02736_ Overheating: Core damaged (-82). 02738_ Lgt. Treads broken. 02738_ Overheating: Short circuit. 02738_ Imp. Sensor Array destroyed. 02739_ Plasma Cannon broken. 02739_ Overheating: Short circuit. 02741_ Overheating: Energy bleed (-14). 02742_ Overheating: Core damaged (-104). Map ----- +----------------------------------------------------+ | ??# #?????# #??????????????????????????? | | ??# #?????# #??????????????????????????? | | ??# #?????# ##?????????????????????????? | | #?# ####### ####???????????????????????? | | ??# ## # # ######?????????????????????? | | ### ####### ##??????? #????????????? | | % ##?????? ??????????????? | | % % ###########????????????? | | ] # """ """ #???#????????? | | ############# # """ """ #????????????? | | ???########### ## """ """ #????????????? | | ??## # ## #????????????? | | ???# # ## #??#?????????? | | ?#?# /=+ ## #???#????????? | | ???# = # [ ## #????????????? | | ???# *#* ## #????#???????? | | ???# # #####+######??#?????????? | | ???# # #????????????? | | ???# # ! < #???#????????? | | ???########### #????????????? | | ####"##?????## """ ########?????????? | | #???????# """ # #??#?#????? | | ###????## " """ # """ #?????#???? | | #???????# T """ + """ #?????????? | | ###?????# " "" #%gu"" ###???????? | | " #?????# ] #@u ; #??????? | | ###?????# # ! ###???#???? | | #???????#########/######+##??#??????? | | #???##?#???????? ????#??????#???? | | #?##???#??????? ! ??????????????? | | ######????????????? ! % !#?????????????? | | ??????????????#???? = #?????????????? | | ?????????????????## #???#?????????? | | ??????????????????# = #?????????????? | | ???#??????????????# #????? ???????? | | ?#????????????????# +?????????????? | | ??????????????????# #?????????????? | | ??????????????????##########??????!??????? | | ?????????????????????? ?????? ???????????? | | ???????????????????????#?????????????????? | | ?????????????????????????????????????????? | | ?????????????????????????????????????????? | | ?????????????????????????????????????????? | | ?????????????????????????????????????????? | | ?????????????????????????????????????????? | | ?????????????????????????????????????????? | | ?????????????????????????????????????????? | | ?????????????????????????????????????????? | | #######??????????????????????????????????? | | ???????????????????????????????????? | +----------------------------------------------------+ Best States ------------- Heat Dissipation 45 Energy Generation 14 Energy Capacity 250 Matter Stores 300 Matter Capacity 300 Sight Range 16 Robot Scan Range 15 Terrain Scan Range 16 Terrain Scan Density 10 Armor Coverage 225 Evasion (%) 55 Armor Integrity Analysis 30 Recoil Reduction 2 Offensive Hacking 20 Item Schematics ----------------- None Robot Schematics ------------------ None Fabricated ------------ Nothing Repaired ---------- Nothing Studied --------- Imp. Hover Unit | -9/Materials | Hacked Med. Laser | -9/Materials | Hacked Alien Tech Used ----------------- None Achievements -------------- Physics Hates This One Trick Challenges ------------ None Game ------ Seed AssaultSpectralProtomatter Manual? 0 Play Time 00:22:57 Cumulative 151.6 hours Start 2026.09.21 @ 23:36:58 End 2026.09.21 @ 23:55:59 Sessions 1 Manual Loads 0 Difficulty Rogue Special Mode None Game No. 167 Rogue 167 Adventurer 0 Explorer 0 Win Type - Total 0 Types 0/0/0/0/0/0/0/0/0/0 Lore% 57 Gallery% 60 Achievement% 46 Wizard Run 0 Options --------- Layout 1 ASCII 0 Keyboard 0 Movement Mouse Keybinds 0 Fullscreen 2 Font 24/Smallcaps Map View 50x35 Zoom Use 0% Tactical HUD 1 Map Filters NONE Filters NONE Steam 1 RUN: 6221c077-bfbe-49ec-a901-184af9ab4265